bitfinex/quotes_BTCUSD_20250422
["timestamp","ask_amount","ask_price","bid_price","bid_amount"]
[1745282852972,0.01146171,87247.0,87246.0,0.35454085]
[1745282853172,0.24068845,87250.0,87246.0,0.34]
[1745282853374,0.24069178,87249.0,87246.0,0.34]
[1745282853616,0.01146144,87249.0,87246.0,0.34]
[1745282853823,0.24069262,87249.0,87246.0,0.34]
[1745282854803,0.01146158,87248.0,87245.0,0.01304682]
[1745282855021,0.01146158,87248.0,87245.0,0.01318379]
[1745282855022,0.22923424,87247.0,87245.0,0.01318379]
[1745282855206,0.22923424,87247.0,87245.0,0.00113697]
[1745282855385,0.22923424,87247.0,87245.0,0.00013697]
[1745282855601,0.01146158,87248.0,87246.0,0.002]
[1745282856151,0.01146158,87248.0,87245.0,0.00013697]
[1745282856561,0.001,87247.0,87245.0,0.01205325]
[1745282856751,0.001,87247.0,87245.0,0.00013697]
[1745282857622,0.22923424,87247.0,87245.0,0.00013697]
[1745282857820,0.0477,87246.0,87245.0,0.00013697]
[1745282859087,0.0487,87246.0,87245.0,0.00013697]
[1745282859314,0.0497,87246.0,87245.0,0.00013697]
[1745282859474,0.0497,87246.0,87245.0,0.02542202]
[1745282859687,0.0497,87246.0,87245.0,0.00013697]
[1745282859890,0.08952763,87246.0,87245.0,0.00013697]
[1745282864274,0.13632763,87246.0,87245.0,0.00013697]
[1745282866128,0.13732763,87246.0,87245.0,0.00013697]
[1745282869156,0.08952763,87246.0,87245.0,0.00013697]
[1745282869366,0.04382763,87246.0,87245.0,0.00013697]
[1745282869989,0.04282763,87246.0,87245.0,0.00013697]
[1745282870191,0.04482763,87246.0,87245.0,0.00013697]
[1745282874053,0.04482763,87246.0,87245.0,0.02651389]
[1745282874252,0.41589999,87297.0,87275.0,0.01145803]
[1745282874466,0.17027002,87328.0,87275.0,0.01145803]
[1745282874467,0.229111,87295.0,87280.0,0.22914757]
[1745282874672,0.011463,87297.0,87280.0,0.58597987]
[1745282874910,0.0489454,87303.0,87280.0,0.62308541]
[1745282875524,0.00398234,87281.0,87280.0,0.62308541]
[1745282876305,0.00398234,87281.0,87280.0,0.63601445]
[1745282876926,0.00498234,87281.0,87280.0,0.63601445]
[1745282877337,0.00198234,87281.0,87280.0,0.63601445]
[1745282877551,0.00098234,87281.0,87280.0,0.63601445]
[1745282877752,0.00098234,87281.0,87280.0,0.63801445]
[1745282877963,0.00098234,87281.0,87280.0,0.64001445]
[1745282878983,0.00098234,87281.0,87280.0,0.75377039]
[1745282879810,0.0008454,87303.0,87280.0,0.75377039]
[1745282879811,0.0002676,87303.0,87300.0,0.3659956]
[1745282880018,0.0002676,87303.0,87302.0,0.24363067]
[1745282880221,0.0002676,87303.0,87302.0,0.35738661]
[1745282881805,0.0002676,87303.0,87302.0,0.35938661]
[1745282882214,0.0002676,87303.0,87302.0,0.36038661]
[1745282888459,0.0002676,87303.0,87302.0,0.70038661]
[1745282888656,0.0008454,87307.0,87304.0,0.58362542]
[1745282888867,0.0008454,87307.0,87304.0,0.74698136]
[1745282889750,0.0008444,87309.0,87304.0,0.74698136]
[1745282889751,0.0008444,87309.0,87306.0,0.58362018]
[1745282889957,0.000844,87316.0,87315.0,0.58359656]
[1745282890167,0.000845,87323.0,87322.0,0.2435782]
[1745282890384,0.000845,87323.0,87322.0,0.69733414]
[1745282890576,0.00098194,87323.0,87322.0,0.73010778]
[1745282891815,0.00098194,87323.0,87322.0,0.69733414]
[1745282892173,0.00098194,87323.0,87322.0,0.73010778]
[1745282892376,0.00098194,87323.0,87322.0,0.76950477]
[1745282892979,0.0008444,87338.0,87335.0,0.34]
[1745282893189,0.00130069,87338.0,87337.0,0.34]
[1745282893418,0.00130069,87338.0,87337.0,0.45375594]
[1745282893987,0.00130069,87338.0,87337.0,0.73006844]
[1745282894170,0.00130069,87338.0,87337.0,0.7983117]
[1745282894396,0.00230069,87338.0,87337.0,0.7682391]
[1745282894971,0.00330069,87338.0,87337.0,0.7682391]
[1745282895760,0.00230069,87338.0,87337.0,0.7682391]
[1745282895962,0.00130069,87338.0,87337.0,0.7682391]
[1745282896757,0.00130069,87338.0,87337.0,0.73546546]
[1745282898021,0.00130069,87338.0,87337.0,0.35454769]
[1745282898227,0.04740069,87338.0,87334.0,0.01145029]
[1745282898439,0.04740069,87338.0,87336.0,0.22899975]
[1745282898641,0.00130069,87338.0,87336.0,0.22899975]
[1745282899294,0.00330069,87338.0,87337.0,0.34]
[1745282899473,0.00330069,87338.0,87336.0,0.22899975]
[1745282899625,0.03399926,87337.0,87336.0,0.22899975]
[1745282899826,0.00130069,87338.0,87337.0,0.34]
[1745282900038,0.00330069,87338.0,87337.0,0.34]
[1745282900443,0.00230069,87338.0,87337.0,0.34]
[1745282901863,0.00230069,87338.0,87335.0,0.1252061]
[1745282901864,0.00130069,87338.0,87336.0,0.34]
[1745282902069,0.00230069,87338.0,87336.0,0.34]
[1745282902697,0.28751501,87338.0,87336.0,0.34]
[1745282902916,0.28751501,87338.0,87292.0,0.0114558]
[1745282902917,0.01145409,87305.0,87292.0,0.0114558]
[1745282903148,0.0461,87311.0,87303.0,0.01145436]
[1745282903149,0.01145344,87310.0,87303.0,0.01145436]
[1745282903348,0.0461,87311.0,87308.0,0.0114537]
[1745282903566,0.0461,87311.0,87309.0,0.03886541]
[1745282904001,0.22906883,87310.0,87305.0,0.34]
[1745282904203,0.2405282,87308.0,87305.0,0.34]
[1745282904420,0.2405282,87308.0,87305.0,0.34013694]
[1745282904653,0.2290745,87308.0,87305.0,0.34013694]
[1745282904853,0.03399926,87307.0,87305.0,0.34013694]
[1745282905511,0.01145357,87309.0,87305.0,0.34013694]
[1745282905739,0.03399926,87306.0,87305.0,0.34013694]
[1745282905961,0.22907426,87308.0,87305.0,0.34013694]
[1745282906212,0.03399926,87306.0,87305.0,0.34013694]
[1745282906421,0.001,87307.0,87305.0,0.34013694]
[1745282906624,0.03399926,87306.0,87305.0,0.34013694]
[1745282907439,0.03499926,87306.0,87305.0,0.34013694]
[1745282907741,0.03499926,87306.0,87305.0,0.56921889]
[1745282907968,0.03499926,87306.0,87305.0,0.69751568]
[1745282908185,0.001,87306.0,87305.0,0.69751568]
[1745282908404,0.002,87306.0,87305.0,0.69751568]
[1745282908910,0.002,87306.0,87305.0,0.69851568]
[1745282909385,0.001,87306.0,87305.0,0.69851568]
[1745282909603,0.01145108,87328.0,87324.0,0.01454085]
[1745282909821,0.01145108,87328.0,87326.0,0.34]
[1745282910028,0.2628188,87327.0,87326.0,0.45375594]
[1745282910272,0.22902424,87327.0,87326.0,0.45375594]
[1745282910486,0.03379456,87327.0,87326.0,0.45375594]
[1745282910876,0.01145108,87328.0,87326.0,0.45375594]
[1745282911121,0.01145108,87328.0,87326.0,0.51952985]
[1745282911316,0.01145108,87328.0,87326.0,0.45375594]
[1745282911990,0.002,87327.0,87326.0,0.45375594]
[1745282912406,0.01145108,87328.0,87326.0,0.45375594]
[1745282912553,0.01345108,87328.0,87326.0,0.45375594]
[1745282913084,0.002,87328.0,87326.0,0.45375594]
[1745282913320,0.002,87327.0,87326.0,0.45375594]
[1745282914570,0.002,87328.0,87326.0,0.45375594]
[1745282915253,0.002,87327.0,87326.0,0.45375594]
[1745282915566,0.23102424,87327.0,87326.0,0.45375594]
[1745282915789,0.2648188,87327.0,87326.0,0.45375594]
[1745282915988,0.24049722,87320.0,87312.0,0.01145317]
[1745282916227,0.22904014,87321.0,87317.0,0.01145252]
[1745282916428,0.01145186,87322.0,87319.0,0.34]
[1745282916646,0.01145186,87322.0,87319.0,0.45375594]
[1745282916863,0.03379456,87321.0,87319.0,0.45375594]
[1745282917089,0.01145186,87322.0,87319.0,0.45375594]
[1745282917274,0.03379456,87320.0,87319.0,0.45375594]
[1745282917622,0.01145186,87322.0,87319.0,0.45375594]
[1745282918478,0.01245186,87322.0,87319.0,0.45375594]
[1745282918924,0.001,87322.0,87321.0,0.58358082]
[1745282919171,0.001,87322.0,87321.0,0.69733676]
[1745282919372,0.002,87322.0,87321.0,0.69733676]
[1745282919781,0.001,87322.0,87321.0,0.69733676]
[1745282920190,0.002,87322.0,87321.0,0.69733676]
[1745282920746,0.002,87322.0,87305.0,0.24067266]
[1745282920747,0.22906375,87312.0,87305.0,0.24067266]
[1745282920966,0.22906375,87312.0,87308.0,0.01454085]
[1745282921184,0.22906375,87312.0,87310.0,0.01454085]
[1745282921384,0.22906375,87312.0,87311.0,0.12829679]
[1745282921608,0.0485,87314.0,87312.0,0.01454085]
[1745282921827,0.0485,87314.0,87313.0,0.46829679]
[1745282922035,0.0485,87314.0,87313.0,0.52230737]
[1745282922387,0.08229456,87314.0,87313.0,0.52230737]
[1745282922623,0.03379456,87314.0,87313.0,0.52230737]
[1745282922859,0.002,87314.0,87313.0,0.75136833]
[1745282923064,0.03579456,87314.0,87313.0,0.75136833]
[1745282923283,0.03679456,87314.0,87313.0,0.52230737]
[1745282923491,0.003,87314.0,87313.0,0.52230737]
[1745282923714,0.03679456,87314.0,87313.0,0.52230737]
[1745282923922,0.001,87314.0,87313.0,0.52230737]
[1745282924593,0.2290474,87319.0,87317.0,0.01454085]
[1745282924708,0.2290474,87319.0,87318.0,0.12551927]
[1745282925112,0.26287359,87319.0,87318.0,0.12551927]
[1745282925341,0.03382619,87319.0,87318.0,0.70910796]
[1745282925808,0.003,87319.0,87318.0,0.70910796]
[1745282926028,0.003,87319.0,87318.0,0.71010796]
[1745282926249,0.002,87319.0,87318.0,0.71883024]
[1745282926667,1e-08,87319.0,87318.0,0.71883024]
[1745282926875,0.0114478,87353.0,87337.0,0.56899801]
[1745282927090,0.01144832,87349.0,87337.0,0.73676453]
[1745282927727,0.01144832,87349.0,87337.0,0.7482525]
[1745282928157,0.00230069,87338.0,87337.0,0.7482525]
[1745282930308,0.00230069,87338.0,87337.0,0.76279335]
[1745282932498,0.00230069,87338.0,87337.0,0.73676453]
[1745282932737,0.00230069,87338.0,87337.0,0.76273021]
[1745282933543,0.00230069,87338.0,87337.0,0.5337322]
[1745282933781,0.00230069,87338.0,87337.0,0.52230737]
[1745282934002,0.03612688,87338.0,87337.0,0.52230737]
[1745282934225,0.00230069,87338.0,87337.0,0.52230737]
[1745282934441,0.03612688,87338.0,87337.0,0.39401058]
[1745282934675,0.00230069,87338.0,87337.0,0.39401058]
[1745282934890,0.03612688,87338.0,87337.0,0.39401058]
[1745282936868,0.03612688,87338.0,87337.0,0.52230737]
[1745282937313,0.00230069,87338.0,87337.0,0.52230737]
[1745282937538,0.03612688,87338.0,87337.0,0.52230737]
[1745282937758,0.00230069,87338.0,87337.0,0.52230737]
[1745282949720,0.00230069,87338.0,87337.0,0.56950737]
[1745282950884,0.00230069,87338.0,87337.0,0.58887892]
[1745282953673,0.00230069,87338.0,87337.0,0.87195886]
[1745282953877,0.00230069,87338.0,87337.0,0.85258731]
[1745282954085,0.00230069,87338.0,87337.0,1.08158532]
[1745282954549,0.00230069,87338.0,87337.0,1.02757474]
[1745282957401,0.00230069,87338.0,87337.0,0.78403588]
[1745282957636,0.00230069,87338.0,87337.0,0.45375594]
[1745282957852,0.03638038,87338.0,87337.0,0.45375594]
[1745282958054,0.00230069,87338.0,87337.0,0.45375594]
[1745282958252,0.03638038,87338.0,87337.0,0.45375594]
[1745282958402,0.00230069,87338.0,87337.0,0.45375594]
[1745282958596,0.03638038,87338.0,87337.0,0.45375594]
[1745282958860,0.00230069,87338.0,87337.0,0.6972948]
[1745282961939,0.00230069,87338.0,87337.0,0.71670707]
[1745282963637,0.00230069,87338.0,87337.0,0.6972948]
[1745282978966,0.00230069,87338.0,87337.0,0.56899801]
[1745282983934,0.00230069,87338.0,87337.0,0.58842971]
[1745282986847,0.00230069,87338.0,87337.0,0.60297056]
[1745282987052,0.00230069,87338.0,87337.0,0.7167265]
[1745282998911,0.00230069,87338.0,87337.0,0.48772849]
[1745282999314,0.03631584,87338.0,87337.0,0.48772849]
[1745282999565,0.00230069,87338.0,87337.0,0.48772849]
[1745282999747,0.00230069,87338.0,87337.0,0.7167265]
[1745283001380,0.00230069,87338.0,87337.0,0.6972948]
[1745283008775,0.00230069,87338.0,87337.0,0.71672804]
[1745283011994,0.00230069,87338.0,87337.0,0.6972948]
[1745283013047,0.00230069,87338.0,87337.0,0.71673025]
[1745283013872,0.00230069,87338.0,87337.0,0.6972948]
[1745283019629,0.00230069,87338.0,87337.0,0.46829679]
[1745283020044,0.31414425,87338.0,87337.0,0.46829679]
[1745283020248,0.28009608,87338.0,87337.0,0.46829679]
[1745283020504,0.31414425,87338.0,87337.0,0.46829679]
[1745283020854,0.08514886,87338.0,87337.0,0.46829679]
[1745283023350,0.08514886,87338.0,87337.0,0.6972948]
[1745283023782,0.03634886,87338.0,87337.0,0.6972948]
[1745283023997,0.00230069,87338.0,87337.0,0.6972948]
[1745283030460,0.00230069,87338.0,87337.0,0.7450948]
[1745283031207,0.00130069,87338.0,87337.0,0.76452484]
[1745283032709,0.00130069,87338.0,87337.0,1.09480478]
[1745283032919,0.00130069,87338.0,87337.0,1.14070478]
[1745283033666,0.00130069,87338.0,87337.0,1.14170478]
[1745283034610,0.00130069,87338.0,87337.0,1.14370478]
[1745283035114,0.00130069,87338.0,87337.0,1.12427474]
[1745283035245,0.00130069,87338.0,87337.0,1.12527474]
[1745283036330,1e-08,87338.0,87337.0,1.12527474]
[1745283037151,1e-08,87338.0,87337.0,1.12227474]
[1745283037388,1e-08,87338.0,87337.0,1.15494838]
[1745283038088,1e-08,87338.0,87337.0,1.15594838]
[1745283038285,1e-08,87338.0,87337.0,1.21972229]
[1745283038464,1e-08,87338.0,87337.0,1.15294838]
[1745283038671,1e-08,87338.0,87337.0,1.12427474]
[1745283040181,1e-08,87338.0,87337.0,1.12627474]
[1745283044135,0.0008438,87358.0,87357.0,0.56894559]
[1745283044378,0.00098063,87358.0,87357.0,1.17887445]
[1745283045000,0.00098063,87358.0,87357.0,1.19823411]
[1745283045207,0.00098063,87358.0,87357.0,1.20688755]
[1745283046393,0.00096001,87358.0,87357.0,1.20688755]
[1745283046602,0.00096001,87358.0,87357.0,1.27266146]
[1745283046809,0.00096001,87358.0,87357.0,1.20688755]
[1745283047276,0.0130524,87362.0,87361.0,0.58347595]
[1745283047459,0.0130524,87362.0,87361.0,0.69723189]
[1745283047696,0.0130524,87362.0,87361.0,0.71659155]
[1745283050308,0.0130524,87362.0,87361.0,0.71759155]
[1745283053310,0.0130524,87362.0,87361.0,1.04787149]
[1745283054397,0.0452,87381.0,87368.0,0.22891676]
[1745283054607,0.0492,87387.0,87368.0,0.6995021]
[1745283054815,0.0492,87387.0,87368.0,0.71657321]
[1745283055673,0.0492,87387.0,87368.0,0.76577321]
[1745283055874,0.0492,87387.0,87368.0,1.09605315]
[1745283056088,0.0004219,87391.0,87368.0,1.09605315]
[1745283056089,1e-08,87373.0,87372.0,0.58344713]
[1745283056319,1e-08,87373.0,87372.0,0.69720307]
[1745283056735,1e-08,87373.0,87372.0,0.71656273]
[1745283057808,1e-08,87373.0,87372.0,0.71756273]
[1745283058013,1e-08,87373.0,87372.0,1.04784267]
[1745283059083,1e-08,87373.0,87372.0,1.04684267]
[1745283059495,1e-08,87373.0,87372.0,1.04784267]
[1745283059704,1e-08,87373.0,87372.0,1.04884267]
[1745283060128,1e-08,87373.0,87372.0,1.04984267]
[1745283060344,0.0004219,87391.0,87390.0,0.58339998]
[1745283060555,0.00055868,87391.0,87390.0,1.16223586]
[1745283061016,0.00055868,87391.0,87390.0,1.18157935]
[1745283061438,0.00055868,87391.0,87390.0,1.19313333]
[1745283062280,0.00055868,87391.0,87390.0,1.20180778]
[1745283062281,0.00155868,87391.0,87390.0,1.20180778]
[1745283062491,1e-08,87391.0,87390.0,1.20180778]
[1745283063731,0.0492,87392.0,87391.0,0.35454085]
[1745283063935,0.0492,87392.0,87391.0,0.79857673]
[1745283064349,0.0492,87392.0,87391.0,0.81792022]
[1745283064833,0.0492,87392.0,87391.0,0.80337937]
[1745283064834,0.0502,87392.0,87391.0,0.80337937]
[1745283065036,0.0502,87392.0,87391.0,0.01934349]
[1745283065458,0.09192165,87392.0,87391.0,0.01934349]
[1745283065931,0.09192165,87392.0,87391.0,0.0424222]
[1745283066140,0.09192165,87392.0,87391.0,0.2424222]
[1745283066323,0.09192165,87392.0,87391.0,0.5824222]
[1745283066526,0.09492165,87392.0,87391.0,0.5824222]
[1745283068521,0.09492165,87392.0,87391.0,0.55934349]
[1745283068733,0.09392165,87392.0,87391.0,0.55934349]
[1745283069171,0.09592165,87392.0,87391.0,0.55934349]
[1745283071414,0.09592165,87392.0,87391.0,0.91649679]
[1745283071862,0.0542,87392.0,87391.0,0.91649679]
[1745283073386,0.005,87392.0,87391.0,0.91649679]
[1745283074464,0.003,87392.0,87391.0,0.91649679]
[1745283075671,0.002,87392.0,87391.0,0.91649679]
[1745283075896,0.002,87392.0,87391.0,0.67309943]
[1745283076132,0.0494,87392.0,87391.0,0.68764028]
[1745283076343,0.09312165,87392.0,87391.0,0.68764028]
[1745283076523,0.09212165,87392.0,87391.0,0.68764028]
[1745283076839,0.09412165,87392.0,87391.0,0.91649679]
[1745283077054,0.09312165,87392.0,87391.0,0.91649679]
[1745283077308,0.0514,87392.0,87391.0,0.91649679]
[1745283077517,0.0504,87392.0,87391.0,0.91649679]
[1745283077714,0.0524,87392.0,87391.0,0.91649679]
[1745283077957,0.0524,87392.0,87391.0,0.9822707]
[1745283078139,0.0504,87392.0,87391.0,0.91649679]
[1745283078311,0.0524,87392.0,87391.0,0.91649679]
[1745283078494,0.0544,87392.0,87391.0,0.91649679]
[1745283078695,0.0504,87392.0,87391.0,0.91649679]
[1745283078922,0.0504,87392.0,87391.0,0.9822707]
[1745283079187,0.0514,87392.0,87391.0,0.91649679]
[1745283080843,0.09307141,87392.0,87391.0,0.91649679]
[1745283082319,0.0514,87392.0,87391.0,0.91649679]
[1745283084998,0.004,87392.0,87391.0,0.91649679]
[1745283090964,0.003,87392.0,87391.0,0.91649679]
[1745283093993,0.003,87392.0,87391.0,0.68764028]
[1745283094200,0.0979,87392.0,87391.0,0.21934349]
[1745283094636,0.1395619,87392.0,87391.0,0.21934349]
[1745283095063,0.1375619,87392.0,87391.0,0.21934349]
[1745283095289,0.1365619,87392.0,87391.0,0.21934349]
[1745283095496,0.1395619,87392.0,87391.0,0.21934349]
[1745283096122,0.1395619,87392.0,87391.0,0.24243525]
[1745283096376,0.1395619,87392.0,87391.0,0.21934349]
[1745283097046,0.1415619,87392.0,87391.0,0.21934349]
[1745283097470,0.1395619,87392.0,87391.0,0.21934349]
[1745283097902,0.1415619,87392.0,87391.0,0.21934349]
[1745283099826,0.0946619,87392.0,87391.0,0.21934349]
[1745283100006,0.0946619,87392.0,87391.0,0.37530945]
[1745283100466,0.053,87392.0,87391.0,0.37530945]
[1745283100888,0.05,87392.0,87391.0,0.37530945]
[1745283101095,0.0896619,87392.0,87391.0,0.37530945]
[1745283101325,0.0936619,87392.0,87391.0,0.37530945]
[1745283101558,0.0916619,87392.0,87391.0,0.34764028]
[1745283101779,0.0916619,87392.0,87391.0,0.21934349]
[1745283101780,0.32051579,87392.0,87391.0,0.21934349]
[1745283103190,0.32251579,87392.0,87391.0,0.2]
[1745283108584,0.32251579,87392.0,87391.0,0.21939055]
[1745283109699,0.32251579,87392.0,87391.0,0.2]
[1745283110925,0.0936619,87392.0,87391.0,0.2]
[1745283111135,0.0466619,87392.0,87391.0,0.2]
[1745283111343,0.005,87392.0,87391.0,0.2]
[1745283111527,0.04658147,87392.0,87391.0,0.2]
[1745283113099,0.27543536,87392.0,87391.0,0.2]
[1745283113730,0.32423536,87392.0,87391.0,0.2]
[1745283114570,0.32423536,87392.0,87391.0,0.24860784]
[1745283115919,0.09538147,87392.0,87391.0,0.37690463]
[1745283116132,0.04658147,87392.0,87391.0,0.60576114]
[1745283116338,0.005,87392.0,87391.0,0.60576114]
[1745283117420,0.04658147,87392.0,87391.0,0.5571533]
[1745283121375,0.005,87392.0,87391.0,0.5571533]
[1745283122195,0.04662116,87392.0,87391.0,0.5571533]
[1745283123129,0.005,87392.0,87391.0,0.5571533]
[1745283123925,0.04662116,87392.0,87391.0,0.5571533]
[1745283124128,0.27547505,87392.0,87391.0,0.32829679]
[1745283124523,0.27547505,87392.0,87391.0,0.2]
[1745283126003,0.32427505,87392.0,87391.0,0.2]
[1745283126555,0.37167505,87392.0,87391.0,0.2]
[1745283127030,0.37167505,87392.0,87388.0,0.2]
[1745283127031,0.22886175,87389.0,87388.0,0.2]
[1745283127255,0.27766175,87389.0,87388.0,0.2]
[1745283128454,0.27966175,87389.0,87388.0,0.2]
[1745283129071,0.27766175,87389.0,87388.0,0.2]
[1745283129500,0.28266175,87389.0,87388.0,0.2]
[1745283129928,0.32417359,87389.0,87388.0,0.2]
[1745283133772,0.32517359,87389.0,87388.0,0.2]
[1745283133988,0.22887747,87383.0,87382.0,0.2]
[1745283134251,0.27667747,87383.0,87382.0,0.2]
[1745283134461,0.31820502,87383.0,87382.0,0.2]
[1745283134672,0.31820502,87383.0,87382.0,0.22]
[1745283135264,0.32020502,87383.0,87382.0,0.2]
[1745283135921,0.22888794,87379.0,87378.0,0.2]
[1745283136327,0.27031254,87379.0,87378.0,0.2]
[1745283136982,0.27031254,87379.0,87377.0,0.2]
[1745283137412,0.27131254,87379.0,87377.0,0.2]
[1745283138219,0.27231254,87379.0,87377.0,0.2]
[1745283138438,0.27431254,87379.0,87377.0,0.2]
[1745283139113,0.22889318,87377.0,87376.0,0.2]
[1745283139556,0.27032302,87377.0,87376.0,0.2]
[1745283139985,0.0114457,87369.0,87366.0,0.0114461]
[1745283140203,0.0114457,87369.0,87367.0,0.11375594]
[1745283141005,0.0114457,87369.0,87368.0,0.2]
[1745283141231,0.0114457,87369.0,87368.0,0.31375594]
[1745283143622,0.24035331,87372.0,87368.0,0.31375594]
[1745283143835,0.01144544,87371.0,87368.0,0.31375594]
[1745283144068,0.01150761,87371.0,87368.0,0.31375594]
[1745283144291,0.24041897,87371.0,87368.0,0.31375594]
[1745283145009,0.04143308,87370.0,87368.0,0.31375594]
[1745283145247,0.04143308,87370.0,87368.0,0.2]
[1745283145248,0.0475,87369.0,87368.0,0.2]
[1745283145692,0.0889357,87369.0,87368.0,0.2]
[1745283147024,0.0899357,87369.0,87368.0,0.2]
[1745283147246,0.0889357,87369.0,87368.0,0.2]
[1745283147617,0.08999263,87369.0,87368.0,0.2]
[1745283148036,0.08999263,87369.0,87365.0,0.00013678]
[1745283148037,0.24036259,87368.0,87365.0,0.00013678]
[1745283148433,0.228922,87366.0,87365.0,0.00013678]
[1745283148865,0.22897107,87366.0,87365.0,0.00013678]
[1745283150239,0.23097107,87366.0,87365.0,0.00013678]
[1745283150828,0.23197107,87366.0,87365.0,0.00013678]
[1745283159857,0.27328719,87366.0,87365.0,0.00013678]
[1745283160304,0.32258719,87366.0,87365.0,0.00013678]
[1745283161113,0.32058719,87366.0,87365.0,0.00013678]
[1745283161313,0.32158719,87366.0,87365.0,0.00013678]
[1745283161536,0.32358719,87366.0,87365.0,0.00013678]
[1745283161744,0.32158719,87366.0,87365.0,0.00013678]
[1745283162362,0.43534313,87366.0,87365.0,0.00013678]
[1745283162569,0.43334313,87366.0,87365.0,0.00013678]
[1745283163048,0.48194313,87366.0,87365.0,0.00013678]
[1745283163209,0.48394313,87366.0,87365.0,0.00013678]
[1745283164520,0.37018719,87366.0,87365.0,0.00013678]
[1745283164756,0.32458719,87366.0,87365.0,0.00013678]
[1745283165488,0.27528719,87366.0,87365.0,0.00013678]
[1745283165919,0.04636519,87366.0,87365.0,0.20013678]
[1745283166138,0.04636519,87366.0,87365.0,0.39534675]
[1745283166570,0.04436519,87366.0,87365.0,0.4098876]
[1745283166784,0.001,87366.0,87365.0,0.4108876]
[1745283167010,0.001,87366.0,87365.0,0.63981222]
[1745283167256,0.005,87366.0,87365.0,0.63981222]
[1745283167772,0.006,87366.0,87365.0,0.63981222]
[1745283167961,0.004,87366.0,87365.0,0.63981222]
[1745283168631,0.004,87366.0,87365.0,0.97981222]
[1745283168859,0.002,87366.0,87365.0,1.02881222]
[1745283170228,0.001,87366.0,87365.0,1.02881222]
[1745283170431,0.001,87366.0,87365.0,1.02981222]
[1745283172196,0.001,87366.0,87365.0,1.02881222]
[1745283172903,0.001,87366.0,87365.0,1.02981222]
[1745283173513,0.001,87366.0,87365.0,1.03081222]
[1745283174220,0.001,87366.0,87365.0,1.06148586]
[1745283175262,0.001,87366.0,87365.0,1.03081222]
[1745283175855,0.001,87366.0,87365.0,0.77958458]
[1745283176066,0.001,87366.0,87365.0,0.20313678]
[1745283176266,0.277322,87366.0,87365.0,1e-08]
[1745283176436,0.31881428,87366.0,87365.0,1e-08]
[1745283177264,0.22894559,87357.0,87356.0,0.0008444]
[1745283177857,0.27041239,87357.0,87356.0,0.0008444]
[1745283178075,0.26941239,87357.0,87356.0,0.0008444]
[1745283179868,0.27041239,87357.0,87356.0,0.0008444]
[1745283184194,0.0424668,87357.0,87356.0,0.0008444]
[1745283189633,0.0424668,87357.0,87356.0,0.12914119]
[1745283189846,0.001,87357.0,87356.0,0.1557254]
[1745283190064,0.04226209,87357.0,87356.0,0.12914119]
[1745283190241,0.001,87357.0,87356.0,0.12914119]
[1745283190412,0.04226209,87357.0,87356.0,0.12914119]
[1745283192293,0.04226209,87357.0,87356.0,0.51714119]
[1745283192717,0.001,87357.0,87356.0,0.51714119]
[1745283193954,0.001,87357.0,87356.0,0.56644119]
[1745283194173,0.002,87366.0,87364.0,0.01454085]
[1745283194464,0.002,87366.0,87365.0,0.46829679]
[1745283195916,0.003,87366.0,87365.0,0.46829679]
[1745283196918,0.004,87366.0,87365.0,0.46829679]
[1745283197439,0.003,87366.0,87365.0,0.46829679]
[1745283197683,0.004,87366.0,87365.0,0.46829679]
[1745283206173,0.004,87366.0,87365.0,0.51749679]
[1745283206585,0.004,87366.0,87365.0,0.46829679]
[1745283210091,0.004,87366.0,87365.0,0.84367673]
[1745283210972,0.002,87366.0,87365.0,0.84367673]
[1745283211752,0.01144334,87387.0,87384.0,0.01454085]
[1745283211917,0.0125268,87387.0,87386.0,0.01454085]
[1745283212115,0.0125268,87387.0,87386.0,0.12829679]
[1745283212320,0.00108346,87387.0,87386.0,0.12829679]
[1745283212873,0.00108346,87387.0,87386.0,0.13972323]
[1745283213085,0.00208346,87387.0,87386.0,0.13972323]
[1745283213482,0.00308346,87387.0,87386.0,0.13972323]
[1745283214436,0.00208346,87387.0,87386.0,0.13972323]
[1745283214650,0.00308346,87387.0,87386.0,0.13972323]
[1745283215004,0.05298346,87387.0,87386.0,0.13972323]
[1745283215419,0.01144492,87375.0,87367.0,0.01144596]
[1745283215622,0.0499,87374.0,87372.0,0.01454085]
[1745283215879,0.0499,87374.0,87373.0,0.46829679]
[1745283216285,0.0499,87374.0,87373.0,0.45375594]
[1745283216507,0.0499,87374.0,87373.0,0.12829679]
[1745283216741,0.0499,87374.0,87373.0,0.12509158]
[1745283217176,0.0499,87374.0,87373.0,0.13963243]
[1745283218007,0.0509,87374.0,87373.0,0.13963243]
[1745283218173,0.0519,87374.0,87373.0,0.13963243]
[1745283218407,0.002,87374.0,87373.0,0.48192136]
[1745283218616,0.002,87374.0,87373.0,0.52923243]
[1745283219407,0.001,87374.0,87373.0,0.52923243]
[1745283219618,0.002,87374.0,87373.0,0.52923243]
[1745283220273,0.001,87374.0,87373.0,0.52923243]
[1745283221107,0.001,87374.0,87373.0,0.85951237]
[1745283221913,0.01186404,87397.0,87385.0,0.01454085]
[1745283221914,0.01144217,87396.0,87385.0,0.01454085]
[1745283222139,0.00108346,87387.0,87386.0,0.12829679]
[1745283224703,0.00208346,87387.0,87386.0,0.12829679]
[1745283224922,0.00308346,87387.0,87386.0,0.12829679]
[1745283225126,0.00208346,87387.0,87386.0,0.12829679]
[1745283225351,0.00308346,87387.0,87386.0,0.12829679]
[1745283226687,0.00308346,87387.0,87386.0,0.80086515]
[1745283226911,0.00308346,87387.0,87386.0,0.84817673]
[1745283227639,0.00108346,87387.0,87386.0,0.84817673]
[1745283228002,0.00208346,87387.0,87386.0,0.84817673]
[1745283229038,0.00108346,87387.0,87386.0,0.84817673]
[1745283229478,0.00108346,87387.0,87386.0,0.85689445]
[1745283235258,0.00108346,87387.0,87386.0,0.78403588]
[1745283235634,0.00108346,87387.0,87386.0,0.79857673]
[1745283242752,0.00108346,87387.0,87386.0,0.89038671]
[1745283242950,0.00108346,87387.0,87386.0,0.90887166]
[1745283243187,0.00108346,87387.0,87386.0,0.87795037]
[1745283244208,0.00108346,87387.0,87386.0,0.84727673]
[1745283248444,0.00108346,87387.0,87386.0,0.84827673]
[1745283248745,0.00108346,87387.0,87386.0,0.84927673]
[1745283251501,0.0004224,87401.0,87386.0,0.84927673]
[1745283251502,0.0004224,87401.0,87400.0,0.22883295]
[1745283251699,0.0473,87425.0,87410.0,0.58334762]
[1745283251928,0.0473,87425.0,87410.0,1.02630004]
[1745283252127,0.00050519,87411.0,87410.0,1.02630004]
[1745283254045,0.00050519,87411.0,87410.0,1.02730004]
[1745283254251,0.00050519,87411.0,87410.0,1.09351865]